bitfinex/quotes_ETHUSD_20250722
["timestamp","ask_amount","ask_price","bid_price","bid_amount"]
[1753177667352,22.23345562,3663.6,3663.5,1e-08]
[1753177667649,21.68345562,3663.6,3663.5,1e-08]
[1753177667856,21.68345562,3663.6,3662.9,0.001]
[1753177667857,3.72110273,3663.0,3662.9,0.001]
[1753177668030,6.72110273,3663.0,3662.9,0.001]
[1753177668351,7.70780273,3663.0,3662.9,0.001]
[1753177668547,7.44437726,3662.9,3662.8,1e-08]
[1753177668716,7.88437726,3662.9,3662.8,1e-08]
[1753177668918,5.73082279,3661.9,3661.8,0.001]
[1753177669220,6.78372279,3661.9,3661.8,0.001]
[1753177670776,7.22372279,3661.9,3661.8,0.001]
[1753177670955,7.77372279,3661.9,3661.8,0.001]
[1753177671250,6.78372279,3661.9,3661.8,0.001]
[1753177671422,21.28372279,3661.9,3661.8,0.001]
[1753177671816,18.5529,3661.9,3661.8,0.001]
[1753177672023,21.28372279,3661.9,3661.8,0.001]
[1753177672738,22.27372279,3661.9,3661.8,0.001]
[1753177673264,22.27372279,3661.9,3661.8,1e-08]
[1753177673621,21.72372279,3661.9,3661.8,1e-08]
[1753177673826,21.28372279,3661.9,3661.8,1e-08]
[1753177674043,21.72372279,3661.9,3661.8,1e-08]
[1753177674219,22.27372279,3661.9,3661.8,1e-08]
[1753177674417,23.16258812,3661.9,3661.8,1e-08]
[1753177674628,22.27372279,3661.9,3661.8,1e-08]
[1753177675768,7.77372279,3661.9,3661.8,1e-08]
[1753177676228,22.27372279,3661.9,3661.8,1e-08]
[1753177680667,14.5,3661.9,3661.8,1e-08]
[1753177680969,2.73076871,3662.0,3661.8,0.45150001]
[1753177681127,0.136,3661.9,3661.8,0.45150001]
[1753177681333,2.86682279,3661.9,3661.8,1e-08]
[1753177681533,2.86682279,3661.9,3661.8,0.24898297]
[1753177681868,5.86682279,3661.9,3661.8,0.2490597]
[1753177682056,5.86682279,3661.9,3661.8,0.24901997]
[1753177682461,20.36682279,3661.9,3661.8,0.24901997]
[1753177682633,20.91682279,3661.9,3661.8,0.24901997]
[1753177682838,2.73141951,3661.1,3661.0,0.001]
[1753177683060,5.86741951,3661.1,3661.0,0.001]
[1753177683572,0.136,3661.1,3661.0,0.001]
[1753177683779,3.136,3661.4,3661.0,0.4525]
[1753177683937,3.136,3661.4,3661.0,0.001]
[1753177684280,2.73141951,3661.1,3661.0,0.001]
[1753177684574,5.73141951,3661.1,3661.0,0.001]
[1753177684946,5.86741951,3661.1,3661.0,0.4525]
[1753177685145,2.73141951,3661.1,3661.0,0.4525]
[1753177685555,0.136,3661.3,3661.0,0.001]
[1753177685753,2.73141951,3661.1,3661.0,0.001]
[1753177686477,1.041,3663.5,3661.2,1.0023]
[1753177686650,0.136,3663.2,3662.4,1.0023]
[1753177686839,2.86587301,3663.2,3662.4,1.1383]
[1753177687042,0.136,3663.2,3662.7,0.136]
[1753177687239,3.0,3663.8,3662.9,1.0762]
[1753177687455,1.0746,3664.3,3663.0,0.47880002]
[1753177687642,0.002,3664.4,3663.0,0.47880002]
[1753177687643,2.86527756,3664.0,3663.4,0.136]
[1753177687842,0.136,3664.0,3663.5,0.4515]
[1753177688038,0.136,3664.0,3663.6,0.4515]
[1753177688243,0.002,3664.4,3663.7,1.4886]
[1753177688481,0.002,3664.4,3663.9,3.76643213]
[1753177688642,0.002,3664.4,3664.1,2.72918315]
[1753177689142,0.002,3664.4,3664.2,0.4515]
[1753177689543,0.002,3664.4,3664.3,0.4515]
[1753177689744,0.002,3664.4,3664.1,0.4515]
[1753177690153,0.002,3664.4,3664.1,0.60036]
[1753177690679,0.002,3664.4,3664.2,0.4515]
[1753177690860,0.002,3664.4,3664.3,3.78513419]
[1753177691045,0.002,3664.4,3664.3,1.0561]
[1753177691257,0.002,3664.4,3664.3,1.5076]
[1753177692275,0.002,3664.4,3664.3,1.673246]
[1753177692663,0.002,3664.4,3664.3,4.40228019]
[1753177692978,0.002,3664.4,3664.3,1.673246]
[1753177693180,2.73098569,3664.4,3663.9,1.0177]
[1753177693356,0.002,3664.4,3663.9,1.0177]
[1753177693556,2.72916201,3664.2,3663.9,1.4692]
[1753177693782,0.002,3664.4,3664.0,0.4515]
[1753177693983,2.72911582,3664.2,3664.0,0.4515]
[1753177694463,2.72918315,3664.1,3664.0,0.4515]
[1753177694661,0.002,3664.4,3664.0,0.4515]
[1753177694858,0.002,3664.4,3664.1,0.24933905]
[1753177695074,0.002,3664.4,3664.2,3.00571547]
[1753177695259,0.002,3664.4,3664.3,1.35313905]
[1753177695671,0.002,3664.4,3664.3,1.83192939]
[1753177695863,0.002,3664.4,3664.3,4.53367324]
[1753177696586,0.002,3664.4,3664.3,1.80463905]
[1753177697284,2.73095972,3664.4,3664.3,1.80463905]
[1753177697466,2.73095972,3664.4,3664.3,1.35313905]
[1753177697783,0.002,3664.4,3664.3,1.80463905]
[1753177697990,2.73095972,3664.4,3664.3,0.24933905]
[1753177698595,4.35903906,3664.4,3664.3,0.24933905]
[1753177698758,8.31433286,3664.4,3664.3,1e-08]
[1753177699390,4.36165562,3663.6,3663.5,1e-08]
[1753177699593,37.36165562,3663.6,3663.5,1e-08]
[1753177699896,1.0821,3662.4,3661.6,0.136]
[1753177700095,2.7309083,3661.8,3661.6,0.136]
[1753177700255,0.136,3662.2,3661.6,0.136]
[1753177700256,2.73075294,3662.0,3661.6,0.136]
[1753177700457,2.73097195,3661.7,3661.6,0.136]
[1753177701056,2.73112112,3661.5,3661.4,1.073]
[1753177701260,0.136,3661.9,3661.4,1.69279]
[1753177701460,2.73063117,3662.2,3661.5,0.4659]
[1753177701707,2.73081977,3662.0,3661.7,0.136]
[1753177702008,2.73089737,3661.8,3661.7,0.136]
[1753177702388,2.73122487,3661.4,3661.0,1.5999]
[1753177702717,3.55,3662.6,3661.1,0.4659]
[1753177702718,3.0,3662.6,3661.1,0.4659]
[1753177703014,2.72936457,3663.9,3661.2,0.136]
[1753177703015,2.73127031,3661.3,3661.2,0.136]
[1753177703212,2.73127031,3661.3,3661.1,0.4659]
[1753177703785,2.73120671,3661.4,3661.1,0.4659]
[1753177704161,2.73127747,3661.3,3661.1,0.4659]
[1753177704363,2.73110253,3661.6,3661.0,1.134]
[1753177704560,2.8669761,3661.7,3661.1,0.38656291]
[1753177704876,2.73104653,3661.6,3661.0,1.5999]
[1753177705062,0.136,3661.7,3661.0,1.5999]
[1753177705063,2.73127768,3661.3,3661.0,1.5999]
[1753177705469,2.73121783,3661.4,3661.0,1.5999]
[1753177705829,0.136,3661.7,3661.1,0.4659]
[1753177706015,0.136,3661.7,3661.1,0.136]
[1753177706164,2.73134491,3661.2,3661.1,0.136]
[1753177706668,2.73114034,3661.5,3661.1,0.6019]
[1753177706880,0.136,3661.7,3661.1,0.136]
[1753177707102,2.86703726,3661.7,3661.2,0.4659]
[1753177707304,2.7311567,3661.5,3661.1,0.136]
[1753177707796,2.73112112,3661.5,3661.4,0.136]
[1753177708001,2.73110958,3661.6,3661.4,0.6019]
[1753177708195,0.136,3662.0,3661.4,0.6019]
[1753177708196,2.73112112,3661.5,3661.4,0.6019]
[1753177708409,2.73112112,3661.5,3661.0,0.4669]
[1753177708613,2.73134211,3661.3,3661.0,0.6029]
[1753177708908,2.73136546,3661.2,3661.0,0.137]
[1753177709621,2.73136546,3661.2,3661.0,0.6029]
[1753177709918,3.136,3661.7,3661.0,0.137]
[1753177710078,3.0,3661.8,3661.0,0.137]
[1753177710079,2.73141951,3661.1,3661.0,0.001]
[1753177711325,2.73141951,3661.1,3661.0,0.25093277]
[1753177712528,2.86741951,3661.1,3661.0,0.25093277]
[1753177712831,1.042,3662.0,3661.0,0.71683277]
[1753177713017,1.042,3662.0,3661.1,0.24993277]
[1753177713018,0.136,3661.6,3661.1,0.24993277]
[1753177713213,0.136,3661.6,3661.3,1.39739597]
[1753177713424,0.136,3661.6,3661.4,0.71583277]
[1753177713589,2.73104653,3661.6,3661.5,0.24993277]
[1753177714012,2.73098102,3661.7,3661.5,0.24993277]
[1753177714329,0.136,3661.9,3661.6,0.24993277]
[1753177714532,0.136,3661.9,3661.7,0.24993277]
[1753177714846,3.8154815,3662.7,3661.9,2.73076352]
[1753177714989,0.136,3662.6,3662.0,0.24993277]
[1753177715188,0.136,3662.6,3662.1,0.24993277]
[1753177715388,2.86631327,3662.6,3662.2,0.24993277]
[1753177715645,0.136,3662.6,3662.3,0.24993277]
[1753177715791,0.136,3662.6,3662.4,0.24993277]
[1753177716042,0.99881632,3663.9,3662.5,3.44618313]
[1753177716043,1.0852,3663.5,3662.5,3.44618313]
[1753177716241,1.0852,3663.5,3662.7,3.80221083]
[1753177716242,0.136,3663.2,3662.7,3.80221083]
[1753177716475,0.136,3663.2,3662.8,0.71583277]
[1753177716653,0.136,3663.2,3662.9,0.24993277]
[1753177716970,0.99881632,3663.9,3663.0,0.71583277]
[1753177717178,0.136,3663.7,3663.1,0.38593277]
[1753177717489,0.136,3663.7,3663.2,0.24993277]
[1753177717771,0.136,3663.7,3663.3,0.24993277]
[1753177718079,0.99881632,3663.9,3662.7,2.7301867]
[1753177718080,2.72963013,3663.5,3662.7,2.7301867]
[1753177718287,1.0306,3663.6,3662.5,0.4659]
[1753177718444,2.73001356,3663.0,3662.5,0.4659]
[1753177719205,3.76017495,3663.6,3661.8,0.02730897]
[1753177719206,0.55,3663.5,3661.8,0.02730897]
[1753177719496,0.55,3663.0,3661.6,1.0113]
[1753177719648,3.0,3662.6,3661.6,1.0113]
[1753177719852,2.7306863,3662.1,3661.6,1.0113]
[1753177720160,3.0,3662.8,3661.7,0.4659]
[1753177720364,2.73024776,3662.7,3661.8,0.02730897]
[1753177720563,2.73030739,3662.6,3661.9,0.4659]
[1753177720769,2.73041037,3662.5,3661.9,0.4659]
[1753177720954,0.55,3663.1,3661.6,1.0113]
[1753177721169,0.55,3663.1,3661.0,0.001]
[1753177721170,3.55,3662.6,3661.2,1.016]
[1753177721486,2.73022633,3662.7,3661.0,0.001]
[1753177721487,3.0,3662.2,3661.0,0.001]
[1753177721687,2.73107052,3661.6,3661.0,0.001]
[1753177721886,2.73098713,3661.7,3661.0,0.001]
[1753177722091,2.730976,3661.7,3661.1,0.4659]
[1753177722380,0.44,3662.5,3661.1,0.4659]
[1753177722381,2.73113425,3661.5,3661.1,0.4659]
[1753177722586,2.7312746,3661.3,3661.0,0.001]
[1753177722953,2.73137098,3661.2,3661.0,0.001]
[1753177723151,2.73129308,3661.3,3661.0,0.001]
[1753177723685,2.73121483,3661.4,3661.0,0.001]
[1753177723887,2.73113556,3661.5,3661.0,0.001]
[1753177724093,2.7314048,3661.2,3661.0,0.001]
[1753177724268,2.73141951,3661.1,3661.0,0.001]
[1753177724796,0.38136356,3661.5,3661.0,0.001]
[1753177724965,3.0,3661.5,3661.0,0.001]
[1753177725168,1.0825,3661.7,3661.0,0.001]
[1753177725356,2.73141951,3661.1,3661.0,0.001]
[1753177726268,5.73141951,3661.1,3661.0,0.001]
[1753177726474,6.17141951,3661.1,3661.0,0.001]
[1753177726676,5.73141951,3661.1,3661.0,0.001]
[1753177727708,3.0,3661.1,3661.0,0.001]
[1753177727904,5.73141951,3661.1,3661.0,0.001]
[1753177728417,7.73991951,3661.1,3661.0,0.001]
[1753177729198,7.73991951,3661.1,3661.0,1e-08]
[1753177729903,7.73991951,3661.1,3661.0,0.25191135]
[1753177730085,7.73991951,3661.1,3661.0,1e-08]
[1753177730801,7.29991951,3661.1,3661.0,1e-08]
[1753177730964,7.73991951,3661.1,3661.0,1e-08]
[1753177732868,2.73194186,3660.4,3660.3,0.001]
[1753177733065,5.73194186,3660.4,3660.3,0.001]
[1753177733667,7.80574186,3660.4,3660.3,0.001]
[1753177734746,5.73194186,3660.4,3660.3,0.001]
[1753177735832,6.72194186,3660.4,3660.3,0.001]
[1753177736032,5.73194186,3660.4,3660.3,0.001]
[1753177737340,6.72194186,3660.4,3660.3,0.001]
[1753177737498,7.78894186,3660.4,3660.3,0.001]
[1753177740235,6.79894186,3660.4,3660.3,0.001]
[1753177740398,2.73194186,3660.4,3660.3,0.001]
[1753177741099,2.73194186,3660.4,3659.7,0.4652]
[1753177741100,7.36833907,3659.6,3659.1,0.001]
[1753177741301,21.86833907,3659.6,3659.1,0.001]
[1753177741504,21.31833907,3659.6,3659.1,0.001]
[1753177741704,20.23253907,3659.6,3659.2,0.4662]
[1753177741897,20.23253907,3659.6,3659.5,0.25211405]
[1753177742819,5.73253907,3659.6,3659.5,0.25211405]
[1753177743533,14.5,3659.7,3659.5,0.25211405]
[1753177743534,0.136,3659.7,3659.5,0.71731405]
[1753177743737,1.0131,3660.6,3659.6,1.79776263]
[1753177743738,2.73219155,3660.1,3659.6,1.79776263]
[1753177743943,2.86824994,3660.0,3659.7,0.71606263]
[1753177744235,2.73231509,3659.9,3659.8,0.71606263]
[1753177744814,2.73231509,3659.9,3659.8,0.25086263]
[1753177745036,3.29236319,3659.9,3659.8,0.25086263]
[1753177745211,6.29236319,3659.9,3659.8,0.25086263]
[1753177745411,7.81416319,3659.9,3659.8,0.25086263]
[1753177745611,3.28253907,3659.6,3659.5,0.001]
[1753177745837,3.6113563,3659.6,3659.5,0.001]
[1753177746137,3.6113563,3659.6,3659.2,0.001]
[1753177746138,6.28276309,3659.3,3659.2,0.001]
[1753177746311,7.36456309,3659.3,3659.2,0.001]
[1753177746512,7.94056309,3659.3,3659.2,1e-08]
[1753177746715,6.28298715,3659.0,3658.9,1e-08]
[1753177746919,6.84303525,3659.0,3658.9,1e-08]
[1753177747307,7.28303525,3659.0,3658.9,1e-08]
[1753177747639,6.29303525,3659.0,3658.9,1e-08]
[1753177747822,5.73298715,3659.0,3658.9,1e-08]
[1753177748137,17.5,3659.0,3658.9,1e-08]
[1753177748450,20.23298715,3659.0,3658.9,1e-08]
[1753177750548,21.87078715,3659.0,3658.9,1e-08]
[1753177750753,20.23298715,3659.0,3658.9,1e-08]
[1753177750963,5.73298715,3659.0,3658.9,0.46520001]
[1753177751260,5.73298715,3659.0,3658.9,1e-08]
[1753177751417,20.23298715,3659.0,3658.9,1e-08]
[1753177752027,5.73298715,3659.0,3658.9,0.46520001]
[1753177752552,2.73290672,3659.2,3658.9,1.50560001]
[1753177752725,5.86896607,3659.1,3659.0,0.4652]
[1753177753047,3.136,3659.1,3659.0,0.4652]
[1753177753614,0.55,3660.1,3659.0,0.4652]
[1753177753615,2.73240146,3659.8,3659.1,2.73286506]
[1753177753812,0.136,3659.8,3659.2,0.4652]
[1753177754061,3.0,3659.6,3659.2,0.4652]
[1753177754212,3.0,3659.7,3659.2,0.4652]
[1753177754526,2.73247497,3659.7,3659.2,0.4652]
[1753177754724,3.0,3659.7,3659.2,0.4652]
[1753177755440,0.136,3659.8,3659.2,0.4652]
[1753177755640,0.136,3659.8,3659.2,3.19797486]
[1753177755841,0.136,3659.8,3659.3,0.4652]
[1753177756035,0.136,3659.8,3659.4,1.0079]
[1753177756236,3.0,3659.6,3659.5,0.4652]
[1753177756438,2.86843315,3659.8,3659.4,1.0079]
[1753177756613,2.73283777,3659.2,3659.1,0.4652]
[1753177756950,0.136,3659.5,3659.1,0.4652]
[1753177757266,3.0,3660.3,3658.9,1e-08]
[1753177757267,2.73298715,3659.0,3658.9,1e-08]
[1753177757742,2.73298715,3659.0,3658.9,0.25184669]
[1753177757944,2.73298715,3659.0,3658.9,0.71704669]
[1753177758251,2.73298715,3659.0,3658.9,0.71708721]
[1753177759177,0.136,3659.1,3658.9,0.71708721]
[1753177759331,0.136,3659.1,3659.0,0.7252872]
[1753177759734,2.73273411,3659.4,3659.0,0.7252872]
[1753177759735,3.0,3659.4,3659.0,0.7252872]
[1753177759964,0.002,3659.6,3659.1,0.2518872]
[1753177760163,2.73455686,3659.6,3659.3,1.0035]
[1753177760350,2.73455686,3659.6,3659.4,0.7252872]
[1753177760555,2.73455685,3659.6,3659.5,0.25216264]
[1753177760749,2.87055685,3659.6,3659.5,0.25216264]
[1753177761150,0.138,3659.6,3659.5,0.25216264]
[1753177761373,2.87053907,3659.6,3659.5,0.25216264]
[1753177761669,3.43083348,3659.6,3659.5,0.25216264]
[1753177762340,6.43083348,3659.6,3659.5,0.25216264]
[1753177762954,5.87053907,3659.6,3659.5,0.72556264]
[1753177763351,0.002,3659.6,3659.5,1.76106264]
[1753177763549,0.002,3659.6,3659.5,4.49367638]
[1753177763874,0.9896,3661.4,3660.4,1.0355]
[1753177764176,0.9896,3661.4,3660.5,2.98397168]
[1753177764177,0.136,3660.9,3660.5,2.98397168]
[1753177764337,0.136,3660.9,3660.4,1.1715]
[1753177764338,0.136,3660.9,3660.8,2.73164335]
[1753177764544,15.5644,3661.8,3660.9,2.73156819]
[1753177764780,0.136,3661.3,3661.0,0.25216264]
[1753177765277,0.136,3661.3,3661.0,0.72556264]
[1753177765278,2.86728573,3661.3,3661.0,0.72556264]
[1753177765943,2.73341951,3661.1,3661.0,0.25216264]
[1753177766886,0.002,3661.1,3661.0,0.25216264]
[1753177767060,0.002,3661.1,3661.0,0.72556264]
[1753177767472,2.73341951,3661.1,3661.0,0.72556264]
[1753177767671,2.73341951,3661.1,3661.0,0.25216264]
[1753177768279,3.29348853,3661.1,3661.0,0.25216264]
[1753177768452,6.29348853,3661.1,3661.0,0.25216264]
[1753177769368,7.37208853,3661.1,3661.0,0.25216264]
[1753177769568,2.7320076,3660.4,3660.2,0.4734]
[1753177769775,2.7320076,3660.4,3660.3,0.25133312]
[1753177770374,3.06080391,3660.4,3660.3,0.25133312]
[1753177770703,6.06080391,3660.4,3660.3,0.25133312]
[1753177771358,1.0806,3661.1,3660.3,0.25133312]
[1753177771684,1.0806,3661.1,3660.4,0.25133312]
[1753177771685,0.136,3660.6,3660.4,0.25133312]
[1753177771889,0.136,3660.6,3660.5,0.25132028]
[1753177772048,5.86781668,3660.6,3660.5,0.25132028]
[1753177772275,3.136,3660.6,3660.5,0.72472028]
[1753177772888,5.8677926,3660.6,3660.5,0.72472028]
[1753177773183,5.8677926,3660.6,3660.5,0.25132028]
[1753177773609,5.8677926,3660.6,3660.5,0.72472028]
[1753177773610,3.136,3660.6,3660.5,0.72472028]
[1753177773815,3.0,3660.6,3660.5,0.72472028]
[1753177774012,0.136,3660.9,3660.5,0.72472028]
[1753177774312,0.002,3661.1,3660.6,0.72472028]
[1753177774480,0.002,3661.1,3660.7,2.98298834]
[1753177774677,0.002,3661.1,3660.8,2.98293476]
[1753177774882,0.002,3661.1,3660.9,8.70467713]
[1753177775115,0.002,3661.1,3661.0,3.1188144]
[1753177775279,0.002,3661.1,3661.0,0.86072028]
[1753177776119,0.002,3661.1,3661.0,3.5922144]
[1753177776447,0.002,3661.1,3661.0,0.86072028]
[1753177776817,2.73341951,3661.1,3661.0,0.25132028]
[1753177777134,0.002,3661.1,3661.0,0.72472028]
[1753177777326,2.73341951,3661.1,3661.0,0.25132028]
[1753177777533,5.73341951,3661.1,3661.0,0.25132028]
[1753177777882,6.17541951,3661.1,3661.0,0.25132028]
[1753177778090,6.72541951,3661.1,3661.0,0.25132028]
[1753177778539,2.73192487,3660.5,3660.0,0.136]
[1753177778717,0.136,3660.5,3660.1,0.72434147]
[1753177779035,0.136,3660.5,3660.2,0.72434147]
[1753177779329,0.002,3661.1,3660.6,3.80696849]
[1753177779500,0.002,3661.1,3660.7,0.72432172]
[1753177779706,0.002,3661.1,3660.8,0.25092172]
[1753177779914,2.73149412,3661.0,3660.9,0.25092172]
[1753177780434,2.73149412,3661.0,3660.3,0.136]
[1753177780435,2.73194186,3660.4,3660.3,0.136]
[1753177780639,2.73194186,3660.4,3659.6,2.73353807]
[1753177780640,2.7320165,3660.3,3659.9,0.4734]
[1753177780820,0.136,3660.4,3660.1,2.73211145]
[1753177781035,0.136,3660.4,3660.3,2.7320165]
[1753177781235,0.138,3661.1,3660.4,3.75119001]
[1753177781438,0.138,3661.1,3660.5,0.25109323]
[1753177781734,0.138,3661.1,3660.6,0.86049323]
[1753177781935,0.138,3661.1,3660.8,2.73158175]
[1753177782119,0.002,3661.1,3661.0,1.0804]
[1753177782440,0.002,3661.1,3661.0,1.33149323]
[1753177782635,0.002,3661.1,3661.0,1.80489323]
[1753177782837,0.002,3661.1,3661.0,4.53638735]
[1753177783001,0.002,3661.1,3661.0,9.22370229]
[1753177783203,0.002,3661.1,3661.0,10.59115687]
[1753177783932,0.136,3662.4,3661.8,0.9985]
[1753177784135,2.73282279,3661.9,3661.8,0.38709323]
[1753177784431,5.86882279,3661.9,3661.8,0.25109323]
[1753177785026,6.90222279,3661.9,3661.8,0.25109323]
[1753177786056,5.86882279,3661.9,3661.8,0.25109323]
[1753177787427,1.0689,3661.3,3660.5,1.0406]
[1753177787654,2.73170813,3660.8,3660.5,1.0406]
[1753177787808,2.73167009,3660.8,3660.5,1.0406]
[1753177788015,2.73156942,3660.9,3660.6,0.4734]
[1753177788312,2.86743165,3661.1,3660.7,0.4734]
[1753177788512,2.73164335,3660.8,3660.7,0.4734]
[1753177788740,2.86748436,3661.1,3660.7,0.4734]
[1753177788931,2.86742154,3661.1,3660.7,0.4734]
[1753177789140,2.86742154,3661.1,3660.7,0.4661]
[1753177789341,0.136,3661.1,3660.7,0.4661]
[1753177789660,2.73164335,3660.8,3660.6,4.66]
[1753177789949,2.73194186,3660.4,3660.3,4.66]
[1753177790116,2.7320165,3660.3,3660.2,4.66]
[1753177790311,0.136,3660.6,3660.2,5.1261]
[1753177790516,3.0,3660.9,3660.3,0.4661]
[1753177790725,2.73168147,3660.8,3660.3,0.6021]
[1753177790946,0.136,3660.9,3660.3,0.6021]
[1753177791111,2.73183778,3660.6,3660.3,0.6021]
[1753177791316,2.731872,3660.5,3660.4,0.4661]
[1753177791515,2.73181422,3660.6,3660.4,0.4661]
[1753177791824,2.73186723,3660.5,3660.4,0.4661]
[1753177792021,2.7320165,3660.3,3660.2,4.66]
[1753177793349,0.136,3660.5,3660.2,5.1261]
[1753177793846,2.7320165,3660.3,3660.2,5.1261]
[1753177794057,2.54033661,3660.3,3660.2,5.1261]
[1753177794344,2.86793071,3660.5,3659.7,4.66]
[1753177794345,2.73224043,3660.0,3659.7,4.66]
[1753177794846,0.136,3660.2,3659.8,0.4661]
[1753177795055,2.73218766,3660.1,3659.9,0.4661]
[1753177795254,2.73221464,3660.1,3659.9,0.4661]
[1753177795417,0.136,3660.2,3659.9,0.4661]
[1753177795749,2.73224043,3660.0,3659.9,0.4661]
[1753177795949,2.86815497,3660.2,3659.9,1.155725]
[1753177795950,0.136,3660.2,3659.9,1.155725]
[1753177796148,0.136,3660.2,3659.9,0.689625]
[1753177796353,2.86810129,3660.2,3660.0,0.4661]
[1753177796550,0.136,3660.2,3660.1,0.4661]
[1753177796753,0.136,3660.5,3660.1,0.4661]
[1753177796941,0.136,3660.5,3660.2,0.4661]
[1753177797260,2.73146757,3661.1,3660.3,1.0006]
[1753177797261,2.73180163,3660.6,3660.3,1.0006]
[1753177797633,2.73173842,3660.7,3660.4,0.4661]
[1753177798057,0.136,3660.8,3660.5,0.4661]
[1753177798571,0.136,3660.8,3660.6,0.4661]
[1753177799243,2.8677029,3660.8,3660.6,0.4661]
[1753177799447,0.136,3660.8,3660.7,0.71866852]
[1753177800165,2.86764335,3660.8,3660.7,0.25256852]
[1753177800332,6.42756354,3660.8,3660.7,0.25256852]
[1753177800533,7.49616354,3660.8,3660.7,0.25256852]
[1753177800871,2.7324644,3659.7,3659.4,0.4661]
[1753177801329,0.136,3659.9,3659.3,1.0131]
[1753177801529,2.7324644,3659.7,3659.3,1.0131]
[1753177801922,2.86832356,3659.9,3659.3,1.0131]
[1753177802159,0.136,3659.9,3659.3,1.0131]
[1753177802362,2.73238974,3659.8,3659.3,1.0131]
[1753177802571,2.7324644,3659.7,3659.3,1.0131]
[1753177802742,2.73241568,3659.8,3659.3,1.0131]
[1753177802944,2.73216959,3660.1,3659.7,0.4661]
[1753177803154,0.136,3660.0,3659.8,0.4661]
[1753177803335,3.55992019,3660.8,3659.9,0.4661]
[1753177803531,2.73156708,3661.0,3660.0,5.6653]
[1753177803734,2.73173099,3660.7,3660.2,0.136]
[1753177803936,2.86765258,3660.8,3660.3,0.4661]
[1753177804256,2.73192087,3660.5,3660.3,0.4661]
[1753177804831,0.136,3660.8,3660.2,0.136]
[1753177804832,2.7320165,3660.3,3660.2,0.136]
[1753177805033,1.0683,3661.2,3659.9,4.66]
[1753177805034,2.73224043,3660.0,3659.9,4.66]
[1753177805554,2.73218887,3660.1,3659.9,4.66]
[1753177805755,0.442,3661.2,3661.0,40.33214633]
[1753177805967,3.28141951,3661.1,3661.0,40.33214633]
[1753177806138,3.65376146,3661.1,3661.0,40.33214633]
[1753177806473,4.09576146,3661.1,3661.0,40.33214633]
[1753177807151,3.65376146,3661.1,3661.0,40.33214633]
[1753177807343,3.28141951,3661.1,3661.0,40.33214633]
[1753177807779,6.28141951,3661.1,3661.0,40.33214633]
[1753177808630,6.28141951,3661.1,3661.0,32.91065565]
[1753177808831,7.79171951,3661.1,3661.0,32.91065565]
[1753177809150,7.79171951,3661.1,3661.0,26.45009863]
[1753177809546,7.79171951,3661.1,3661.0,5.82959573]
[1753177809864,7.34971951,3661.1,3661.0,5.82959573]
[1753177810860,3.79971951,3661.1,3661.0,5.82959573]
[1753177811395,2.73141951,3661.1,3661.0,5.82959573]
[1753177812793,2.73131397,3661.3,3661.0,6.08172691]
[1753177812956,2.73131667,3661.3,3661.1,0.71823118]
[1753177813291,2.73131667,3661.3,3661.2,0.25213118]
[1753177813654,1.0683,3661.8,3661.2,0.25213118]
[1753177813892,1.0683,3661.8,3661.3,0.25213118]
[1753177814093,1.0683,3661.4,3661.0,4.06690852]
[1753177814389,6.41741951,3661.1,3661.0,4.06690852]
[1753177814989,6.85941951,3661.1,3661.0,4.06690852]
[1753177816467,6.41741951,3661.1,3661.0,4.06690852]
[1753177816793,2.86741951,3661.1,3661.0,4.06690852]
[1753177817386,0.136,3661.1,3661.0,5.53830852]
[1753177817767,0.002,3661.9,3661.1,2.73137119]
[1753177817995,1.0703,3661.9,3661.0,4.06690852]
[1753177818493,2.73108092,3661.6,3661.0,4.06690852]
[1753177818689,1.0703,3661.9,3661.0,4.06690852]
[1753177818690,2.73120486,3661.4,3661.1,0.4301]
[1753177818890,0.02731436,3661.3,3661.0,4.06690852]
[1753177819194,0.02731436,3661.3,3658.9,1e-08]
[1753177819195,2.73253907,3659.6,3658.9,1e-08]
[1753177819401,0.55,3658.7,3658.1,0.001]
[1753177819700,1.09561436,3659.6,3658.4,1.0063]
[1753177819995,1.0683,3659.6,3658.5,0.4301]
[1753177820198,1.0683,3659.6,3658.6,0.14364]
[1753177820358,3.72424269,3660.0,3658.6,0.14364]
[1753177820359,2.75994274,3659.5,3658.6,0.14364]
[1753177820805,2.73282448,3659.3,3658.6,0.14364]
[1753177820957,2.73286643,3659.2,3658.6,0.14364]
[1753177821886,0.02731436,3659.3,3658.6,0.14364]
[1753177822088,0.02731436,3659.3,3658.7,3.16452233]
[1753177822475,0.02731436,3659.4,3658.8,2.73311901]
[1753177822695,2.73225632,3660.0,3659.2,2.73280531]
[1753177822893,2.73225632,3660.0,3659.3,0.4301]
[1753177822894,2.73228276,3660.0,3659.3,0.4301]
[1753177823094,1.132,3660.5,3659.3,0.4301]
[1753177823095,0.02731436,3660.1,3659.3,0.4301]
[1753177823303,3.0,3660.6,3659.4,1.1186]
[1753177823599,2.7317388,3660.7,3659.9,2.73227061]
[1753177823898,2.7317388,3660.7,3660.0,0.4301]
[1753177824396,0.58843502,3661.3,3660.1,1.0961]
[1753177824561,2.73134491,3661.2,3660.1,3.82826403]
[1753177824762,2.73142482,3661.1,3660.2,0.81565864]
[1753177824964,2.73142482,3661.1,3660.3,3.16205195]
[1753177825394,0.58843502,3661.6,3660.3,0.4301]
[1753177825698,2.73158358,3660.9,3660.3,0.4301]
[1753177825900,2.73126119,3661.4,3660.3,0.4301]
[1753177826064,2.73144579,3661.1,3660.4,0.25191831]
[1753177826271,2.73139517,3661.2,3660.5,0.25191831]
[1753177826483,2.73139517,3661.2,3660.6,0.25191831]
[1753177826797,4.32551817,3661.7,3660.7,0.25191831]
[1753177826798,1.1165,3661.7,3660.7,0.25191831]
[1753177826989,3.0,3661.5,3660.8,0.25191831]
[1753177827185,2.73114551,3661.5,3660.9,0.25191831]